fUSD/lending_fUSD_20240412
["ID","MTS","AMOUNT","RATE_DAILY","PERIOD"]
[322290617,1712938248779,-153.27967446,0.00045331,30]
[322290618,1712938248788,-150.0,0.00045357,30]
[322290619,1712938248797,-150.0,0.00045484,30]
[322290620,1712938248806,-150.0,0.000455,8]
[322290621,1712938248816,-150.0,0.00045574,60]
[322290622,1712938248825,-150.0,0.00045625,30]
[322290623,1712938248835,-150.0,0.00045645,30]
[322290624,1712938248844,-161.89,0.00045662,2]
[322290625,1712938248853,-150.0,0.00045714,30]
[322290626,1712938248862,-150.0,0.00045806,30]
[322290627,1712938248871,-150.0,0.00045854,2]
[322290628,1712938248881,-11621.32774865,0.00045888,60]
[322290629,1712938248890,-150.0,0.00045968,30]
[322290630,1712938248899,-100000.0,0.00046,46]
[322290631,1712938248908,-27763.12719949,0.00046,30]
[322290632,1712938248918,-254.01326401,0.00046,15]
[322290633,1712938248927,-150.0,0.00046,8]
[322290634,1712938248936,-6926.40813717,0.00046033,2]
[322290635,1712938248946,-150.0,0.00046071,30]
[322290636,1712938248955,-150.0,0.00046129,30]
[322290637,1712938248966,-169.48360756,0.00046177,30]
[322290638,1712938248976,-357.69,0.00046247,15]
[322290639,1712938248985,-150.0,0.0004625,30]
[322290640,1712938249038,-150.0,0.0004629,30]
[322290641,1712938249059,-152.40306161,0.00046326,30]
[322290642,1712938249081,-442.0,0.00046335,2]
[322290643,1712938249103,-211.0,0.0004635,30]
[322290644,1712938249125,-425.47,0.000464,7]
[322290645,1712938249146,-337.88,0.000464,7]
[322290646,1712938249163,-150.0,0.00046429,30]
[322290647,1712938249172,-150.0,0.00046452,30]
[322290648,1712938249181,-1000.0,0.0004647,3]
[322290649,1712938249191,-344168.07673266,0.000465,7]
[322290650,1712938249204,-1646.41744647,0.000465,7]
[322290651,1712938249224,-3138.05679187,0.000465,7]
[322290652,1712938250777,-379.87228,0.00020798,2]
[322290653,1712938250789,-8284.37317505,0.00020798,2]
[322290654,1712938250798,-898.24049116,0.000209,2]
[322290655,1712938250809,-474.48060157,0.00034999,4]
[322290656,1712938250818,-150.0,0.00036729,2]
[322290657,1712938250829,-150.0,0.0003673,2]
[322290658,1712938250838,-150.0,0.00036732,2]
[322290659,1712938250848,-150.0,0.00036735,2]
[322290660,1712938250857,-150.0,0.00036744,2]
[322290661,1712938250866,-150.0,0.00036751,2]
[322290662,1712938250876,-150.0,0.00036753,2]
[322290663,1712938250885,-150.0,0.00036754,2]
[322290664,1712938250895,-150.0,0.00036762,2]
[322290665,1712938250904,-150.0,0.00036768,2]
[322290666,1712938250913,-150.0,0.0003677,2]
[322290667,1712938250923,-150.0,0.0003678,2]
[322290668,1712938250933,-150.0,0.00036803,2]
[322290669,1712938250943,-150.0,0.00036823,2]
[322290670,1712938250952,-150.0,0.00036856,2]
[322290671,1712938250962,-406.28518394,0.000369,2]
[322290672,1712938250972,-150.0,0.00036912,2]
[322290673,1712938250981,-150.0,0.00036915,2]
[322290674,1712938250991,-150.0,0.00036928,2]
[322290675,1712938251000,-150.0,0.0003693,2]
[322290676,1712938251010,-150.0,0.00036935,2]
[322290677,1712938251020,-150.0,0.00036944,2]
[322290678,1712938251030,-4574.5148871,0.000465,7]
[322290679,1712938251057,-122593.64936834,0.000465,7]
[322290680,1712938259233,4715.68336052,0.00019864,2]
[322290681,1712938375860,1012.60541616,0.00018718,5]
[322290683,1712938839853,1646.659651,0.00020474,2]
[322290685,1712939046240,-155.0,0.00020562,2]
[322290686,1712939046262,-525.85134183,0.00020563,2]
[322290687,1712939046285,-244.0412895,0.00020563,2]
[322290688,1712939046307,-3770.46184272,0.00020564,2]
[322290689,1712939046328,-353.14913346,0.00020565,2]
[322290690,1712939046350,-233.51339806,0.00020565,2]
[322290691,1712939046371,-312.9044161,0.00020566,2]
[322290692,1712939046397,-780.05382611,0.00020566,2]
[322290693,1712939046422,-150.0,0.00020696,2]
[322290694,1712939046443,-2959.84391928,0.00020697,2]
[322290695,1712939046464,-308.54934267,0.00020697,2]
[322290696,1712939046484,-4506.63149027,0.00020698,2]
[322290697,1712939085371,-428.68748259,0.00020559,2]
[322290698,1712939085393,-2028.94286588,0.0002056,2]
[322290699,1712939085416,-607.36870775,0.00020561,2]
[322290700,1712939085439,-1821.38525298,0.00020697,2]
[322290701,1712939085459,-1124.22300973,0.00020698,2]
[322290702,1712939085481,-210.98240875,0.00020698,2]
[322290703,1712939085503,-184.43,0.00020788,2]
[322290704,1712939085524,-184.43,0.00020789,2]
[322290705,1712939085544,-627.83260574,0.0002079,2]
[322290706,1712939085565,-522.74695704,0.00020796,2]
[322290707,1712939085587,-1773.93631488,0.00020796,2]
[322290708,1712939085608,-211.98232217,0.00020796,2]
[322290709,1712939085628,-704.91869228,0.00020796,2]
[322290710,1712939085649,-7768.13338021,0.00020796,2]
[322290711,1712939092789,361.3113,0.00020473,2]
[322290712,1712939094533,-311.36333794,0.00020697,2]
[322290713,1712939094555,-10562.40614543,0.00020697,2]
[322290714,1712939094576,-1815.31815068,0.00020796,2]
[322290715,1712939094597,-832.87853214,0.00020796,2]
[322290716,1712939094619,-353.14913346,0.00020796,2]
[322290717,1712939094639,-423.82308843,0.00020796,2]
[322290718,1712939094660,-863.78848918,0.00020796,2]
[322290719,1712939094686,-244.0412895,0.00020796,2]
[322290720,1712939094709,-155.0,0.00020796,2]
[322290721,1712939094731,-320.46617066,0.00020796,2]
[322290722,1712939094754,-233.2014644,0.00020796,2]
[322290723,1712939094775,-193.66021181,0.00020796,2]
[322290724,1712939094796,-196.80757818,0.00020796,2]
[322290725,1712939094816,-155.0,0.00020796,2]
[322290726,1712939094839,-3339.09640819,0.00020797,2]
[322290727,1712939096093,-20000.0,0.00020797,2]
[322290728,1712939146433,-304.80897078,0.00020696,2]
[322290729,1712939146456,-173.52919186,0.000207,2]
[322290730,1712939146478,-244.0412895,0.00020795,2]
[322290731,1712939146498,-155.0,0.00020795,2]
[322290732,1712939146517,-212.18761855,0.00020796,2]
[322290733,1712939146539,-282.51922941,0.00020796,2]
[322290734,1712939146558,-1773.93631488,0.00020796,2]
[322290735,1712939146577,-245.62697646,0.00020796,2]
[322290736,1712939146603,-16608.35040856,0.00020797,2]
[322290737,1712939147532,-20000.0,0.00020797,2]
[322290738,1712939148609,-20000.0,0.00020797,2]
[322290739,1712939149900,-20000.0,0.00020797,2]
[322290740,1712939225279,205.1,0.00019311,2]
[322290741,1712939231436,-311.36333792,0.00020697,2]
[322290742,1712939231457,-4324.64565833,0.00020792,2]
[322290743,1712939231478,-549.30554053,0.00020793,2]
[322290744,1712939231499,-244.0412895,0.00020794,2]
[322290745,1712939231519,-192.42850161,0.00020795,2]
[322290746,1712939231543,-1178.21567211,0.00020795,2]
[322290759,1712939247116,2100.0,0.000209,7]
[322290761,1712939268242,-443.55932997,0.00020794,2]
[322290762,1712939268263,-192.29590709,0.00020794,2]
[322290763,1712939268284,-2305.65248206,0.00020794,2]
[322290764,1712939268305,-244.0412895,0.00020794,2]
[322290765,1712939268329,-1158.72412017,0.00020794,2]
[322290766,1712939268349,-681.453666,0.00020795,2]
[322290767,1712939268369,-304.48085724,0.00020796,2]
[322290768,1712939268390,-773.53754613,0.00020796,2]
[322290769,1712939268411,-13896.25480184,0.00020796,2]
[322290770,1712939277975,-13450.0,0.00020796,2]
[322290777,1712939432540,-244.0412895,0.00020549,2]
[322290778,1712939432550,-250.0,0.0002055,2]
[322290780,1712939432560,-1639.2467277,0.00020697,2]
[322290782,1712939432571,-475.62684948,0.000207,2]
[322290783,1712939432581,-2082.76653332,0.00020787,2]
[322290792,1712939432650,-4030.38846551,0.00020787,2]
[322290793,1712939432660,-153.69,0.00020787,2]
[322290794,1712939432669,-153.69,0.00020788,2]
[322290795,1712939432679,-469.53428067,0.00020788,2]
[322290796,1712939432689,-153.69,0.0002079,2]
[322290797,1712939432699,-580.7972142,0.00020795,2]
[322290798,1712939432709,-1329.52623962,0.00020796,2]
[322290799,1712939432722,-5849.14303864,0.00020796,2]
[322290800,1712939432732,-267.58069064,0.00020796,2]
[322290801,1712939432742,-790.37627071,0.00020797,2]
[322290802,1712939432763,-277.44365078,0.00020797,2]
[322290803,1712939432776,-359.39922,0.00020797,2]
[322290804,1712939432789,-20739.79999999,0.00020797,2]
[322290805,1712939432815,-21592.20858535,0.00020797,2]
[322290806,1712939432829,-806.0244192,0.00020797,2]
[322290807,1712939432842,-690.04,0.00020797,2]
[322290808,1712939432865,-4522.0687835,0.00020797,2]
[322290809,1712939432879,-1783.08507821,0.00020797,2]
[322290810,1712939432896,-27189.86678108,0.00020797,2]
[322290848,1712939437466,-4846.20018913,0.00020797,2]
[322290853,1712939437479,-808.75030777,0.00020797,2]
[322290856,1712939437491,-741.27723955,0.00020797,2]
[322290858,1712939437502,-420.8888349,0.00020797,2]
[322290860,1712939437514,-324.95664198,0.00020797,2]
[322290863,1712939437526,-9775.61953121,0.00020797,2]
[322290865,1712939437540,-13319.37384709,0.00020797,2]
[322290867,1712939437552,-1611.46310217,0.00020797,2]
[322290869,1712939437564,-6899.76157047,0.00020797,2]
[322290872,1712939437576,-1685.3999999,0.00020797,2]
[322290874,1712939437594,-2212.95392481,0.00020797,2]
[322290877,1712939437607,-11880.57297133,0.00020797,2]
[322290879,1712939437619,-13473.11706826,0.00020797,2]
[322290881,1712939437631,-19479.58555204,0.00020797,2]
[322290883,1712939437643,-788.96664417,0.00020797,2]
[322290982,1712939438616,-279.25341899,0.00020797,2]
[322291008,1712939439106,-6900.0,0.00020797,2]
[322291011,1712939439128,-3980.10260999,0.00020797,2]
[322291013,1712939439141,-34290.0,0.00020797,2]
[322291015,1712939439155,-6925.91368,0.00020797,2]
[322291016,1712939439167,-6852.2,0.00020797,2]
[322291017,1712939439178,-1725.444524,0.00020797,2]
[322291018,1712939439190,-513.25000001,0.00020797,2]
[322291066,1712939442992,-480.0,0.00020797,2]
[322291067,1712939443005,-5117.36541824,0.00020797,2]
[322291068,1712939443016,-1004.276,0.00020797,2]
[322291069,1712939443028,-3376.78892219,0.00020797,2]
[322291070,1712939443040,-182322.42682041,0.00020797,2]
[322291071,1712939443050,-1262.736,0.00020797,2]
[322291072,1712939443063,-7507.55304803,0.00020797,2]
[322291073,1712939443073,-220.19437736,0.00020797,2]
[322291074,1712939443084,-326551.67805104,0.00020798,2]
[322291075,1712939443094,-2577.93,0.00020798,2]
[322291076,1712939443104,-499.99,0.00020798,2]
[322291077,1712939443113,-1000.0,0.00020798,2]
[322291078,1712939443123,-90671.1108,0.00020799,2]
[322291079,1712939443133,-500.0,0.00020799,2]
[322291080,1712939443142,-500.0,0.00020799,2]
[322291081,1712939443152,-500.0,0.00020799,2]
[322291082,1712939443161,-500.0,0.00020799,2]
[322291083,1712939443170,-425.47549502,0.00020799,2]
[322291084,1712939443180,-665.8267,0.00020799,2]
[322291085,1712939443190,-172926.8152,0.000208,2]
[322291086,1712939443200,-188.80232167,0.000208,2]
[322291088,1712939443212,-2437.92,0.00020913,2]
[322291090,1712939443222,-250.0,0.00021,3]
[322291092,1712939443232,-715.05532847,0.00021,2]
[322291094,1712939443242,-1138.58,0.00021074,2]
[322291095,1712939443251,-400.97,0.00021181,2]
[322291096,1712939443260,-1386.44,0.00021332,2]
[322291097,1712939443269,-205.1,0.00021575,2]
[322291098,1712939443279,-869.33,0.00021594,2]
[322291099,1712939443289,-250.0,0.00021918,2]
[322291100,1712939443298,-250.0,0.00021966,2]
[322291101,1712939443307,-1471.73797299,0.00022,2]
[322291102,1712939443316,-783.81607988,0.00022,2]
[322291103,1712939443325,-23900.0,0.00022426,2]
[322291104,1712939443336,-1829.32,0.00022426,2]
[322291105,1712939443345,-231.34,0.00022512,2]
[322291106,1712939443354,-206.54,0.00022839,2]
[322291107,1712939443363,-157.46,0.00022867,2]
[322291108,1712939443373,-300.0,0.00023,3]
[322291109,1712939443382,-1167.8518051,0.000231,2]
[322291110,1712939443396,-539.1481949,0.000231,2]
[322291111,1712939443406,-3933.29,0.00023557,2]
[322291112,1712939443416,-205.1,0.00023839,2]
[322291113,1712939443427,-1639.24672767,0.00023942,2]
[322291114,1712939443436,-224.65965367,0.00024,2]
[322291115,1712939443445,-157.46,0.00024059,2]
[322291116,1712939443455,-869.33,0.00024334,2]
[322291117,1712939443467,-2959.84391922,0.00024726,2]
[322291118,1712939443477,-2223.99943328,0.000248,2]
[322291119,1712939443486,-350.0,0.00025,3]
[322291120,1712939443496,-155.0,0.00025,2]
[322291121,1712939443505,-2603.91013845,0.00025,2]
[322291122,1712939443515,-562.74532621,0.00025,2]
[322291123,1712939443524,-205.1,0.00026103,2]
[322291124,1712939443538,-4200.0,0.000269,9]
[322291125,1712939443547,-400.0,0.00027,3]
[322291126,1712939443557,-155.0,0.00027,2]
[322291127,1712939443566,-869.33,0.00027073,2]
[322291128,1712939443577,-1639.24672767,0.00027187,2]
[322291129,1712939443586,-156.76,0.00027397,2]
[322291130,1712939443596,-475.62684948,0.00027719,2]
[322291131,1712939443607,-20180.30698704,0.00028,2]
[322291132,1712939443617,-981.78425713,0.00028,2]
[322291133,1712939443627,-1000.0,0.00028211,2]
[322291134,1712939443637,-205.1,0.00028367,2]
[322291135,1712939443647,-2959.84391922,0.00028755,4]
[322291136,1712939443656,-6746.82289371,0.00029,2]
[322291137,1712939443666,-164.65,0.00029,2]
[322291138,1712939443675,-441.77418907,0.000295,3]
[322291139,1712939443685,-400.97,0.00029653,2]
[322291140,1712939443695,-801.03,0.00029746,2]
[322291141,1712939443704,-5669.53624761,0.0003,2]
[322291142,1712939443717,-500.0,0.00030064,2]
[322291143,1712939443726,-635.0,0.00030137,2]
[322291144,1712939443735,-1639.24672767,0.00030431,2]
[322291145,1712939443745,-205.1,0.00030631,2]
[322291146,1712939443754,-636.0,0.00031507,2]
[322291147,1712939444007,-159.02515124,0.0003168,2]
[322291148,1712939444017,-1000.0,0.00031737,2]
[322291149,1712939444027,-149.01265674,0.00032603,2]
[322291150,1712939444043,-3686.91734326,0.00032603,2]
[322291151,1712939444052,-2959.84391922,0.00032784,6]
[322291152,1712939444063,-150.2,0.00032877,2]
[322291153,1712939444072,-205.1,0.00032895,2]
[322291154,1712939444082,-152.73,0.000336,2]
[322291155,1712939444092,-152.73,0.000336,2]
[322291156,1712939444102,-152.73,0.000336,2]
[322291157,1712939444112,-156.76,0.00033844,2]
[322291158,1712939444122,-1000.0,0.00034247,2]
[322291159,1712939444131,-500.0,0.00034297,2]
[322291160,1712939444140,-475.62684948,0.00034739,2]
[322291161,1712939444149,-375.99594554,0.00034998,4]
[322291162,1712939444160,-1008.09254298,0.00034999,4]
[322291163,1712939444169,-205.1,0.00035159,2]
[322291164,1712939444179,-1000.0,0.00035263,2]
[322291165,1712939444189,-245.91,0.00035288,15]
[322291166,1712939444199,-223.01205191,0.00035445,2]
[322291167,1712939444210,-160.31,0.00036414,120]
[322291168,1712939444219,-3545.92,0.00036543,2]
[322291169,1712939444229,-2959.84391922,0.00036813,8]
[322291170,1712939444238,-442.0,0.00036926,2]
[322291171,1712939444247,-1042.0,0.00036926,2]
[322291172,1712939444257,-150.2,0.00036986,2]
[322291173,1712939444266,-5800.0,0.00037,2]
[322291174,1712939444276,-152.73,0.000371,3]
[322291175,1712939444285,-152.73,0.000371,3]
[322291176,1712939444295,-152.73,0.000371,3]
[322291177,1712939444304,-385.97092465,0.00037324,2]
[322291178,1712939444314,-205.1,0.00037422,2]
[322291179,1712939444323,-152.0,0.000376,3]
[322291180,1712939444332,-245.91,0.00038027,15]
[322291181,1712939444342,-153.27967446,0.00038147,7]
[322291182,1712939444355,-169.51155599,0.00038174,7]
[322291183,1712939444364,-159.6662564,0.0003827,7]
[322291184,1712939444374,-188.37741041,0.00038354,7]
[322291185,1712939444383,-157.16461119,0.00038535,7]
[322291186,1712939444393,-385.97092465,0.0003871,2]
[322291187,1712939444403,-1000.0,0.0003879,2]
[322291188,1712939444413,-800.0,0.0003897,2]
[322291189,1712939444422,-188.37741041,0.00039169,7]
[322291190,1712939444431,-153.69,0.0003949,2]
[322291191,1712939444442,-98039.75339059,0.000395,30]
[322291192,1712939444452,-152.6758148,0.00039668,7]
[322291193,1712939444462,-205.1,0.00039686,2]
[322291194,1712939444472,-157.16461119,0.00039908,7]
[322291195,1712939444481,-152.6758148,0.00039953,7]
[322291196,1712939444491,-8006.82950531,0.0004,7]
[322291197,1712939444500,-385.97092465,0.00040095,2]
[322291198,1712939444511,-156.76,0.0004029,2]
[322291199,1712939444524,-157.16461119,0.00040341,30]
[322291200,1712939444533,-152.6758148,0.00040348,30]
[322291201,1712939444543,-152.73,0.000406,4]
[322291202,1712939444553,-152.73,0.000406,4]
[322291203,1712939444563,-152.73,0.000406,4]
[322291204,1712939444573,-188.37741041,0.00040646,30]
[322291205,1712939444583,-245.91,0.00040767,15]
[322291206,1712939444592,-2959.84391922,0.00040842,10]
[322291207,1712939444605,-169.48360756,0.00040842,30]
[322291208,1712939444614,-157.0,0.00041096,2]
[322291209,1712939444624,-150.2,0.00041096,2]
[322291210,1712939444633,-2500.0,0.000411,2]
[322291211,1712939444645,-385.97092465,0.00041481,2]
[322291212,1712939444654,-153.94987676,0.00041521,30]
[322291213,1712939444665,-157.16461119,0.00041583,30]
[322291214,1712939444675,-153.27967446,0.00041602,30]
[322291215,1712939444685,-157.16461119,0.00041664,30]
[322291216,1712939444694,-152.6758148,0.0004171,30]
[322291217,1712939444704,-475.62684948,0.00041758,2]
[322291218,1712939444716,-205.1,0.0004195,2]
[322291219,1712939444725,-2117.091,0.00042007,14]
[322291220,1712939444735,-1000.0,0.00042316,2]
[322291221,1712939444744,-150.76473124,0.0004256,30]
[322291222,1712939444753,-385.97092465,0.00042866,2]
[322291223,1712939444764,-152.0,0.000432,4]
[322291224,1712939444774,-153.45242309,0.00043362,30]
[322291225,1712939444783,-245.91,0.00043507,15]
[322291226,1712939444794,-3835.93,0.00043836,2]
[322291227,1712939444803,-700.0,0.0004397,3]
[322291228,1712939444813,-154.14489771,0.00043999,30]
[322291229,1712939444823,-161.48190782,0.00044077,30]
[322291230,1712939444832,-152.73,0.000441,4]
[322291231,1712939444842,-152.73,0.000441,4]
[322291232,1712939444852,-152.73,0.000441,4]
[322291233,1712939444865,-205.1,0.00044214,2]
[322291234,1712939444876,-385.97092465,0.00044252,2]
[322291235,1712939444886,-500.0,0.0004452,30]
[322291236,1712939444895,-500.0,0.0004452,30]
[322291237,1712939444904,-157.16461119,0.0004483,30]
[322291238,1712939444917,-2959.84391922,0.00044871,12]
[322291239,1712939444927,-157.16461119,0.00044887,30]
[322291240,1712939444937,-400.0,0.00045068,30]
[322291241,1712939444947,-150.2,0.00045205,2]
[322291242,1712939444956,-150.0,0.000455,8]
[322291243,1712939444966,-385.97092465,0.00045637,2]
[322291244,1712939444976,-6300.0,0.000459,16]
[322291245,1712939444986,-417.390342,0.00045964,30]
[322291246,1712939444996,-150.0,0.00046,8]
[322291247,1712939445005,-157.16461119,0.00046029,30]
[322291248,1712939445015,-155.21992077,0.00046032,4]
[322291249,1712939445025,-6926.40813717,0.00046033,2]
[322291250,1712939445034,-150.0,0.00046122,60]
[322291251,1712939445044,-150.0,0.00046238,2]
[322291252,1712939445053,-245.91,0.00046247,15]
[322291253,1712939445063,-150.0,0.00046249,2]
[322291254,1712939445072,-150.0,0.00046256,2]
[322291255,1712939445082,-150.0,0.00046263,2]
[322291256,1712939445091,-1500.0,0.00046264,2]
[322291257,1712939445101,-150.0,0.00046269,2]
[322291258,1712939445111,-150.0,0.00046271,2]
[322291259,1712939445121,-150.0,0.00046272,2]
[322291260,1712939445130,-150.0,0.00046283,2]
[322291261,1712939445140,-150.0,0.00046284,2]
[322291262,1712939445149,-150.0,0.00046284,2]
[322291263,1712939445159,-152.76250818,0.00046298,30]
[322291264,1712939445168,-127859.05997276,0.000463,30]
[322291265,1712939445178,-2005.29933666,0.000463,7]
[322291266,1712939445187,-300.0,0.00046303,2]
[322291267,1712939445197,-150.0,0.00046309,2]
[322291268,1712939445206,-150.0,0.00046312,2]
[322291269,1712939445217,-3459.5700504,0.00046334,2]
[322291270,1712939445226,-150.0,0.00046336,2]
[322291272,1712939445235,-150.0,0.00046337,2]
[322291274,1712939445245,-150.0,0.00046339,2]
[322291275,1712939445254,-1500.0,0.00046343,2]
[322291276,1712939445263,-1500.0,0.00046346,2]
[322291277,1712939445272,-150.0,0.00046355,2]
[322291278,1712939445281,-1500.0,0.00046369,2]
[322291280,1712939445290,-150.0,0.00046373,2]
[322291281,1712939445300,-150.0,0.00046396,2]
[322291282,1712939445309,-91616.1567,0.00046397,2]
[322291283,1712939445318,-1030.0,0.00046398,7]
[322291284,1712939445327,-1500.0,0.00046406,2]
[322291285,1712939445337,-1500.0,0.00046411,2]
[322291286,1712939445346,-150.0,0.00046418,2]
[322291287,1712939445355,-150.0,0.00046429,2]
[322291288,1712939445364,-150.0,0.00046434,2]
[322291290,1712939445373,-150.0,0.00046436,2]
[322291292,1712939445383,-150.0,0.00046453,2]
[322291294,1712939445392,-150.0,0.00046455,2]
[322291296,1712939445401,-150.76473124,0.00046456,30]
[322291298,1712939445411,-150.0,0.00046459,2]
[322291300,1712939445420,-150.0,0.00046459,2]
[322291302,1712939445430,-150.0,0.0004646,2]
[322291304,1712939445448,-943.07,0.00046466,2]
[322291307,1712939445456,-150.0,0.00046466,2]
[322291310,1712939445468,-700.0,0.0004647,3]
[322291312,1712939445477,-177.56891117,0.0004647,2]
[322291314,1712939445487,-205.1,0.00046478,2]
[322291315,1712939445496,-150.0,0.00046479,2]
[322291316,1712939445505,-153.69,0.00046486,2]
[322291318,1712939445514,-150.0,0.00046488,2]
[322291320,1712939445524,-469.53428067,0.0004649,2]
[322291322,1712939445535,-194.59758508,0.00046492,2]
[322291323,1712939445545,-280.246,0.00046496,4]
[322291324,1712939445554,-2368.9835652,0.00046496,2]
[322291325,1712939445564,-78332.8362892,0.00046496,2]
[322291326,1712939445574,-3805.33775635,0.00046497,10]
[322291327,1712939445584,-207.28883958,0.00046497,4]
[322291328,1712939445593,-156.3850435,0.00046497,4]
[322291329,1712939445602,-155.0,0.00046497,4]
[322291330,1712939445612,-407.53973989,0.00046497,4]
[322291331,1712939445622,-23297.98636349,0.00046497,4]
[322291332,1712939445632,-166.94364196,0.00046497,4]
[322291333,1712939445642,-266.84805779,0.00046497,4]
[322291334,1712939445653,-261.60041953,0.00046497,4]
[322291335,1712939445663,-353.7179818,0.00046497,4]
[322291336,1712939445673,-199.06250695,0.00046497,4]
[322291337,1712939445683,-244.89311493,0.00046498,4]
[322291338,1712939445693,-164.14681743,0.00046498,4]
[322291339,1712939445702,-1946.85537606,0.00046498,4]
[322291340,1712939445713,-3269.55888913,0.00046498,4]
[322291341,1712939445723,-221.36630039,0.00046498,4]
[322291342,1712939445732,-155.06552496,0.00046498,4]
[322291343,1712939445743,-296.00785364,0.00046498,4]
[322291344,1712939445752,-201.87774174,0.00046498,4]
[322291345,1712939445762,-155.0,0.00046498,4]
[322291346,1712939445771,-8886.16256706,0.00046498,4]
[322291347,1712939445781,-299.33879216,0.00046498,4]
[322291348,1712939445790,-159.00931375,0.00046498,4]
[322291349,1712939445801,-1058.36793939,0.00046498,4]
[322291350,1712939445810,-301.07124124,0.00046498,4]
[322291351,1712939445821,-263.23157217,0.00046498,4]
[322291352,1712939445833,-239.68779562,0.00046498,4]
[322291353,1712939445843,-640.46092048,0.00046498,4]
[322291354,1712939445853,-155.0,0.00046498,4]
[322291355,1712939445867,-155.16856599,0.00046498,4]
[322291356,1712939445876,-155.0,0.00046498,2]
[322291357,1712939445886,-155.17839332,0.00046498,2]
[322291358,1712939445895,-842.0277,0.00046498,4]
[322291359,1712939445905,-2354.77756212,0.00046498,4]
[322291360,1712939445915,-260.52629873,0.00046498,4]
[322291361,1712939445924,-3200.80983817,0.00046498,4]
[322291362,1712939445934,-4139.86435696,0.00046499,4]
[322291363,1712939445943,-94006.76399356,0.000465,7]
[322291364,1712939445953,-1778.0,0.000465,20]
[322291365,1712939445965,-7000.0,0.000465,120]
[322291366,1712939445975,-16762.99751967,0.000465,4]
[322291367,1712939445984,-4194.41374299,0.000465,4]
[322291368,1712939445996,-167.10457723,0.000465,2]
[322291369,1712939446006,-594.45231208,0.000465,15]
[322291370,1712939446016,-544.05162533,0.000465,120]
[322291371,1712939446025,-10402.76313216,0.000465,5]
[322291372,1712939446034,-170.49660245,0.000465,7]
[322291373,1712939446044,-254.14645215,0.000465,4]
[322291374,1712939446054,-150.0,0.000465,8]
[322291375,1712939446063,-5665.9482328,0.00046502,2]
[322291376,1712939446073,-165.23571955,0.00046534,30]
[322291377,1712939446082,-814.51754721,0.0004657,3]
[322291378,1712939446091,-700.0,0.0004657,3]
[322291379,1712939446101,-593.09000125,0.00046575,2]
[322291380,1712939446110,-500.0,0.00046575,31]
[322291381,1712939446120,-500.0,0.00046575,31]
[322291382,1712939446129,-500.0,0.00046575,31]
[322291383,1712939446139,-500.0,0.00046575,31]
[322291384,1712939446148,-500.0,0.00046575,31]
[322291385,1712939446159,-500.0,0.00046575,31]
[322291386,1712939446168,-500.0,0.00046575,31]
[322291387,1712939446177,-500.0,0.00046575,31]
[322291388,1712939446187,-500.0,0.00046575,31]
[322291389,1712939446196,-500.0,0.00046575,31]
[322291390,1712939446205,-500.0,0.00046575,31]
[322291391,1712939446217,-500.0,0.00046575,31]
[322291392,1712939446226,-500.0,0.00046575,31]
[322291393,1712939446235,-196.2,0.00046575,31]
[322291394,1712939446245,-500.0,0.00046575,31]
[322291395,1712939446254,-500.0,0.00046575,31]
[322291396,1712939446264,-259.85940966,0.00046575,31]
[322291397,1712939446273,-500.0,0.00046575,31]
[322291398,1712939446282,-500.0,0.00046575,31]
[322291399,1712939446291,-500.0,0.00046575,31]
[322291400,1712939446300,-500.0,0.00046575,31]
[322291401,1712939446310,-526.02227896,0.00046575,31]
[322291402,1712939446319,-500.0,0.00046575,31]
[322291403,1712939446329,-500.0,0.00046575,31]